fUST/lending_fUST_20241230
["ID","MTS","AMOUNT","RATE_DAILY","PERIOD"]
[347182394,1735553442857,-500.48385014,0.00014692,2]
[347182395,1735553442867,-500.0,0.00014692,2]
[347182396,1735553442876,-500.0,0.00014692,2]
[347182397,1735553442885,-519.64,0.00014692,2]
[347182398,1735553442894,-500.0,0.00014692,2]
[347182399,1735553442904,-500.0,0.00014692,2]
[347182400,1735553442913,-500.0,0.00014692,2]
[347182401,1735553442923,-4716.72,0.00014692,2]
[347182402,1735553442932,-589.62350081,0.00014693,2]
[347182405,1735553442941,-500.0,0.00014693,2]
[347182406,1735553442951,-500.0,0.00014693,2]
[347182407,1735553442961,-500.0,0.00014693,2]
[347182408,1735553442970,-500.0,0.00014693,2]
[347182409,1735553442979,-502.87896353,0.00014693,2]
[347182410,1735553442988,-304.77641913,0.00014693,2]
[347182411,1735553442999,-500.0,0.00014693,2]
[347182412,1735553443008,-266.03646334,0.00014693,2]
[347182413,1735553443018,-500.0,0.00014693,2]
[347182414,1735553443027,-500.0,0.00014693,2]
[347182415,1735553443037,-238.58201739,0.00014693,2]
[347182416,1735553443046,-502.57302151,0.00014693,2]
[347182417,1735553443056,-502.8024777,0.00014693,2]
[347182418,1735553443065,-500.0,0.00014693,2]
[347182419,1735553443074,-502.30033796,0.00014693,2]
[347182420,1735553443083,-500.0,0.00014693,2]
[347182421,1735553443093,-500.0,0.00014693,2]
[347182422,1735553443102,-500.0,0.00014693,2]
[347182423,1735553443111,-500.0,0.00014693,2]
[347182424,1735553443121,-500.0,0.00014693,2]
[347182425,1735553443130,-501.99128868,0.00014693,2]
[347182426,1735553443140,-500.0,0.00014693,2]
[347182427,1735553443149,-504.350125,0.00014693,2]
[347182428,1735553443158,-504.02993081,0.00014693,2]
[347182429,1735553443168,-503.2018599,0.00014693,2]
[347182430,1735553443177,-399.73258547,0.00014693,2]
[347182431,1735553443186,-500.0,0.00014693,2]
[347182432,1735553443196,-509.79478455,0.00014693,2]
[347182433,1735553443205,-503.82876462,0.00014693,2]
[347182434,1735553443218,-503.34563675,0.00014693,2]
[347182435,1735553443227,-500.0,0.00014693,2]
[347182436,1735553443236,-500.0,0.00014693,2]
[347182437,1735553443245,-500.0,0.00014693,2]
[347182438,1735553443254,-500.0,0.00014693,2]
[347182439,1735553443263,-505.15418948,0.00014693,2]
[347182440,1735553443273,-500.80629639,0.00014693,2]
[347182441,1735553443282,-617.88157464,0.00014693,2]
[347182442,1735553443291,-500.0,0.00014693,2]
[347182443,1735553443301,-502.04632583,0.00014693,2]
[347182444,1735553443310,-500.0,0.00014693,2]
[347182445,1735553443320,-500.0,0.00014693,2]
[347182446,1735553443330,-500.0,0.00014693,2]
[347182447,1735553443339,-500.0,0.00014693,2]
[347182448,1735553443348,-500.78294876,0.00014693,2]
[347182449,1735553443359,-500.52101286,0.00014693,2]
[347182450,1735553443369,-500.0,0.00014693,2]
[347182451,1735553443379,-500.0,0.00014693,2]
[347182452,1735553443388,-500.0,0.00014693,2]
[347182453,1735553443398,-500.0,0.00014693,2]
[347182454,1735553443407,-500.0,0.00014693,2]
[347182455,1735553443417,-570.43356481,0.00014693,2]
[347182456,1735553443427,-500.0,0.00014693,2]
[347182457,1735553443437,-500.0,0.00014693,2]
[347182458,1735553443447,-500.42538076,0.00014693,2]
[347182459,1735553443457,-500.0,0.00014693,2]
[347182460,1735553443468,-500.0,0.00014693,2]
[347182461,1735553443478,-544.58096834,0.00014693,2]
[347182462,1735553443488,-500.0,0.00014693,2]
[347182463,1735553443497,-500.0,0.00014693,2]
[347182464,1735553443506,-500.0,0.00014693,2]
[347182465,1735553443516,-500.0,0.00014693,2]
[347182466,1735553443525,-500.0,0.00014693,2]
[347182467,1735553443535,-500.0,0.00014693,2]
[347182468,1735553443544,-500.0,0.00014693,2]
[347182469,1735553443553,-502.23572272,0.00014693,2]
[347182470,1735553443562,-500.37836057,0.00014693,2]
[347182471,1735553443571,-500.0,0.00014693,2]
[347182472,1735553443581,-525.91930928,0.00014693,2]
[347182473,1735553443590,-501.01510061,0.00014693,2]
[347182474,1735553443599,-500.0,0.00014693,2]
[347182475,1735553443608,-500.0,0.00014693,2]
[347182476,1735553443617,-500.0,0.00014693,2]
[347182477,1735553443627,-502.24862892,0.00014693,2]
[347182478,1735553443636,-500.0,0.00014693,2]
[347182479,1735553443645,-500.0,0.00014693,2]
[347182480,1735553443655,-500.0,0.00014693,2]
[347182481,1735553443664,-500.57577732,0.00014693,2]
[347182482,1735553443673,-500.0,0.00014693,2]
[347182483,1735553443684,-500.0,0.00014693,2]
[347182484,1735553443695,-500.0,0.00014693,2]
[347182485,1735553443704,-500.0,0.00014693,2]
[347182486,1735553443716,-500.0,0.00014693,2]
[347182487,1735553443725,-959.19,0.00014693,2]
[347182488,1735553443734,-501.61669338,0.00014693,2]
[347182489,1735553443744,-501.49985503,0.00014693,2]
[347182490,1735553443820,-500.0,0.00014693,2]
[347182491,1735553443830,-505.37511582,0.00014693,2]
[347182492,1735553443840,-502.76336571,0.00014693,2]
[347182493,1735553443849,-500.0,0.00014693,2]
[347182494,1735553443859,-500.0,0.00014693,2]
[347182495,1735553443868,-500.0,0.00014693,2]
[347182496,1735553443877,-270.33950607,0.00014693,2]
[347182497,1735553443886,-500.0,0.00014693,2]
[347182498,1735553443895,-500.0,0.00014693,2]
[347182499,1735553443904,-507.10366578,0.00014693,2]
[347182500,1735553443914,-501.98500443,0.00014693,2]
[347182501,1735553443923,-500.0,0.00014693,2]
[347182502,1735553443933,-851.2,0.00014693,2]
[347182503,1735553443943,-500.0,0.00014693,2]
[347182504,1735553443952,-500.0,0.00014693,2]
[347182505,1735553443963,-466.4711778,0.00014693,2]
[347182506,1735553443973,-500.0,0.00014693,2]
[347182507,1735553443982,-500.0,0.00014693,2]
[347182508,1735553443992,-500.7511855,0.00014693,2]
[347182509,1735553444001,-500.0,0.00014693,2]
[347182510,1735553444011,-500.0,0.00014693,2]
[347182511,1735553444024,-500.0,0.00014693,2]
[347182512,1735553444033,-500.0,0.00014693,2]
[347182513,1735553444042,-500.0,0.00014693,2]
[347182514,1735553444051,-500.0,0.00014693,2]
[347182515,1735553444060,-500.0,0.00014693,2]
[347182516,1735553444069,-500.0,0.00014693,2]
[347182517,1735553444078,-500.0,0.00014693,2]
[347182518,1735553444088,-500.0,0.00014693,2]
[347182519,1735553444097,-501.74495404,0.00014693,2]
[347182520,1735553444106,-500.583539,0.00014693,2]
[347182521,1735553444114,-500.0,0.00014693,2]
[347182522,1735553444123,-501.25232172,0.00014693,2]
[347182523,1735553444132,-503.10011867,0.00014693,2]
[347182524,1735553444141,-500.0,0.00014693,2]
[347182525,1735553444151,-502.9178807,0.00014693,2]
[347182526,1735553444160,-500.0,0.00014693,2]
[347182527,1735553444169,-501.18036831,0.00014693,2]
[347182528,1735553444178,-500.0,0.00014693,2]
[347182529,1735553444187,-500.0,0.00014693,2]
[347182530,1735553444196,-500.0,0.00014693,2]
[347182531,1735553444206,-515.97,0.00014693,2]
[347182532,1735553444216,-500.0,0.00014693,2]
[347182533,1735553444225,-500.0,0.00014693,2]
[347182534,1735553444234,-500.0,0.00014693,2]
[347182535,1735553444244,-500.0,0.00014693,2]
[347182536,1735553444253,-500.0,0.00014693,2]
[347182537,1735553444262,-500.0,0.00014693,2]
[347182538,1735553444272,-500.0,0.00014693,2]
[347182539,1735553444281,-500.0,0.00014693,2]
[347182540,1735553444291,-625.36104925,0.00014693,2]
[347182541,1735553444300,-500.0,0.00014693,2]
[347182542,1735553444309,-500.0,0.00014693,2]
[347182543,1735553444318,-500.0,0.00014693,2]
[347182544,1735553444328,-500.0,0.00014693,2]
[347182545,1735553444337,-500.0,0.00014693,2]
[347182546,1735553444347,-500.0,0.00014693,2]
[347182547,1735553444356,-500.0,0.00014693,2]
[347182548,1735553444367,-500.0,0.00014693,2]
[347182549,1735553444376,-502.18038305,0.00014693,2]
[347182550,1735553444386,-661.65,0.00014693,2]
[347182551,1735553444395,-500.0,0.00014693,2]
[347182552,1735553444404,-500.0,0.00014693,2]
[347182553,1735553444414,-500.0,0.00014693,2]
[347182554,1735553444423,-313.13781388,0.00014693,2]
[347182555,1735553444432,-500.0,0.00014693,2]
[347182556,1735553444442,-500.0,0.00014693,2]
[347182557,1735553444451,-315.997811,0.00014693,2]
[347182558,1735553444461,-151.0,0.00014693,2]
[347182559,1735553444471,-500.0,0.00014693,2]
[347182560,1735553444482,-315.997811,0.00014693,2]
[347182561,1735553444491,-151.0,0.00014693,2]
[347182562,1735553444501,-500.0,0.00014693,2]
[347182563,1735553444511,-500.0,0.00014693,2]
[347182564,1735553444520,-751.488954,0.00014693,2]
[347182565,1735553444530,-751.488954,0.00014693,2]
[347182566,1735553444539,-151.0,0.00014693,2]
[347182567,1735553444548,-500.0,0.00014693,2]
[347182568,1735553444558,-269.440535,0.00014693,2]
[347182569,1735553444567,-500.0,0.00014693,2]
[347182570,1735553444576,-765.820995,0.00014693,2]
[347182571,1735553444586,-765.820995,0.00014693,2]
[347182572,1735553444595,-1057.78841,0.00014693,2]
[347182573,1735553444604,-500.0,0.00014693,2]
[347182574,1735553444613,-1057.78841,0.00014693,2]
[347182575,1735553444623,-500.82931552,0.00014693,2]
[347182576,1735553444632,-1057.78841,0.00014693,2]
[347182577,1735553444641,-1057.78841,0.00014693,2]
[347182578,1735553444650,-3010.081874,0.00014693,2]
[347182579,1735553444659,-3010.081874,0.00014693,2]
[347182580,1735553444669,-3010.081874,0.00014693,2]
[347182581,1735553444678,-3010.081874,0.00014693,2]
[347182582,1735553444690,-500.0,0.00014693,2]
[347182583,1735553444700,-352.5060848,0.000147,2]
[347182584,1735553444712,-500.0,0.00014702,2]
[347182585,1735553444722,-500.0,0.00014702,2]
[347182586,1735553444733,-500.0,0.00014702,2]
[347182587,1735553444742,-500.0,0.00014702,2]
[347182588,1735553444752,-9819.23017552,0.00014719,2]
[347182589,1735553444761,-153.0,0.0001474,2]
[347182590,1735553444771,-153.0,0.0001474,2]
[347182591,1735553444782,-153.0,0.00014752,2]
[347182592,1735553444791,-153.0,0.00014752,2]
[347182593,1735553444800,-500.0,0.00014773,2]
[347182594,1735553444810,-502.41149017,0.0001478,2]
[347182595,1735553444819,-1236.98825751,0.00014864,2]
[347182596,1735553444828,-601.99541837,0.00014873,2]
[347182597,1735553444837,-500.0,0.00014899,2]
[347182598,1735553444847,-500.0,0.00014899,2]
[347182599,1735553444856,-500.0,0.00014899,2]
[347182600,1735553444866,-500.0,0.00014899,2]
[347182601,1735553444875,-500.0,0.00014899,2]
[347182602,1735553444885,-500.0,0.00014899,2]
[347182603,1735553444894,-255.87189111,0.00014899,2]
[347182604,1735553444903,-500.0,0.00014899,2]
[347182605,1735553444913,-500.0,0.00014899,2]
[347182606,1735553444924,-500.0,0.00014899,2]
[347182607,1735553444934,-500.0,0.00014899,2]
[347182608,1735553444943,-500.0,0.00014899,2]
[347182609,1735553444953,-500.0,0.00014899,2]
[347182610,1735553444966,-309.034682,0.00014899,2]
[347182611,1735553444976,-309.034682,0.00014899,2]
[347182612,1735553444986,-542.039691,0.00014899,2]
[347182613,1735553444995,-542.039691,0.00014899,2]
[347182614,1735553445005,-500.0,0.00014899,2]
[347182615,1735553445014,-606.14951666,0.00014899,2]
[347182616,1735553445024,-64778.93291387,0.000149,2]
[347182617,1735553445034,-64778.93291372,0.000149,2]
[347182618,1735553445043,-64778.93291372,0.000149,2]
[347182619,1735553445052,-64778.93291372,0.000149,2]
[347182620,1735553445062,-64778.93291372,0.000149,2]
[347182621,1735553445072,-204.036878,0.000149,2]
[347182622,1735553445081,-778.129999,0.000149,2]
[347182623,1735553445089,-778.129999,0.000149,2]
[347182624,1735553445099,-478.092112,0.000149,2]
[347182625,1735553445108,-478.092112,0.000149,2]
[347182626,1735553445117,-315.997811,0.000149,2]
[347182627,1735553445127,-151.0,0.000149,2]
[347182628,1735553445137,-151.0,0.000149,2]
[347182629,1735553445146,-151.0,0.000149,2]
[347182630,1735553445155,-315.997811,0.000149,2]
[347182631,1735553445164,-154.338824,0.000149,2]
[347182632,1735553445173,-751.488954,0.000149,2]
[347182633,1735553445183,-751.488954,0.000149,2]
[347182634,1735553445192,-751.488954,0.000149,2]
[347182635,1735553445201,-751.488954,0.000149,2]
[347182636,1735553445211,-751.488954,0.000149,2]
[347182637,1735553445221,-751.488954,0.000149,2]
[347182638,1735553445231,-765.820995,0.000149,2]
[347182639,1735553445240,-765.820995,0.000149,2]
[347182640,1735553445250,-1057.78841,0.000149,2]
[347182641,1735553445259,-1057.78841,0.000149,2]
[347182642,1735553445268,-1057.78841,0.000149,2]
[347182643,1735553445277,-1057.78841,0.000149,2]
[347182645,1735553445286,-1057.78841,0.000149,2]
[347182647,1735553445358,-1057.78841,0.000149,2]
[347182648,1735553445368,-3010.081874,0.000149,2]
[347182649,1735553445377,-3010.081874,0.000149,2]
[347182650,1735553445386,-3010.081874,0.000149,2]
[347182651,1735553445396,-3010.081874,0.000149,2]
[347182652,1735553445405,-3010.081874,0.000149,2]
[347182653,1735553445414,-3010.081874,0.000149,2]
[347182654,1735553445423,-500.0,0.00014935,2]
[347182655,1735553445433,-500.0,0.00014935,2]
[347182656,1735553445443,-206.11972044,0.00014935,2]
[347182657,1735553445452,-500.0,0.00014935,2]
[347182658,1735553445464,-400.27,0.00014935,2]
[347182659,1735553445473,-242.23398464,0.00014935,2]
[347182660,1735553445482,-500.0,0.00014935,2]
[347182661,1735553445491,-500.0,0.00014952,2]
[347182662,1735553445501,-500.0,0.00014952,2]
[347182663,1735553445510,-500.0,0.00014952,2]
[347182664,1735553445519,-500.0,0.00014952,2]
[347182665,1735553445528,-500.0,0.00014952,2]
[347182666,1735553445537,-500.0,0.00014952,2]
[347182667,1735553445547,-500.0,0.00014952,2]
[347182668,1735553445556,-500.0,0.00014952,2]
[347182669,1735553445565,-500.0,0.00014952,2]
[347182670,1735553445574,-500.0,0.00014952,2]
[347182671,1735553445584,-500.0,0.00014952,2]
[347182672,1735553445593,-500.0,0.00014952,2]
[347182673,1735553445602,-500.0,0.00014952,2]
[347182674,1735553445611,-500.0,0.00014952,2]
[347182675,1735553445622,-500.0,0.00014952,2]
[347182676,1735553445634,-500.0,0.00014952,2]
[347182677,1735553445646,-153.5340186,0.00014959,2]
[347182678,1735553445656,-214.3641981,0.00014959,2]
[347182679,1735553445665,-153.5340186,0.00014959,2]
[347182680,1735553445674,-214.3641981,0.00014959,2]
[347182681,1735553445684,-214.3641981,0.00014959,2]
[347182682,1735553445696,-153.5340186,0.00014959,2]
[347182684,1735553445706,-153.2916501,0.00014959,2]
[347182685,1735553445716,-500.0,0.00014966,2]
[347182686,1735553445725,-500.0,0.00014966,2]
[347182687,1735553445736,-500.0,0.00014966,2]
[347182688,1735553445746,-500.0,0.00014966,2]
[347182689,1735553445755,-500.0,0.00014966,2]
[347182690,1735553445766,-500.0,0.00014966,2]
[347182691,1735553445775,-500.0,0.00014966,2]
[347182692,1735553445785,-500.0,0.00014966,2]
[347182693,1735553445794,-500.0,0.00014966,2]
[347182694,1735553445803,-500.0,0.00014966,2]
[347182695,1735553445813,-500.0,0.00014966,2]
[347182696,1735553445822,-500.0,0.00014966,2]
[347182697,1735553445831,-500.0,0.00014966,2]
[347182698,1735553445840,-500.0,0.00014966,2]
[347182699,1735553445850,-500.0,0.00014966,2]
[347182700,1735553445859,-500.0,0.00014966,2]
[347182701,1735553445868,-500.0,0.00014966,2]
[347182702,1735553445878,-899.57,0.00014966,2]
[347182703,1735553445887,-500.0,0.00014966,2]
[347182704,1735553445895,-500.0,0.00014966,2]
[347182705,1735553445904,-500.0,0.00014966,2]
[347182706,1735553445914,-500.0,0.00014966,2]
[347182707,1735553445923,-500.0,0.00014966,2]
[347182708,1735553445932,-500.0,0.00014966,2]
[347182709,1735553445942,-661.65,0.00014966,2]
[347182710,1735553445951,-500.0,0.00014966,2]
[347182711,1735553445961,-1398.82,0.00014966,2]
[347182712,1735553445970,-500.0,0.00014966,2]
[347182713,1735553445979,-500.0,0.00014966,2]
[347182714,1735553445988,-500.0,0.00014966,2]
[347182715,1735553445997,-6631.15,0.00014966,2]
[347182716,1735553446006,-500.0,0.00014966,2]
[347182717,1735553446015,-503.34,0.00014966,2]
[347182718,1735553446024,-500.0,0.00014966,2]
[347182719,1735553446033,-500.0,0.00014966,2]
[347182720,1735553446042,-2678.1,0.00014966,2]
[347182721,1735553446051,-500.0,0.00014966,2]
[347182722,1735553446059,-500.0,0.00014966,2]
[347182723,1735553446068,-500.0,0.00014966,2]
[347182724,1735553446078,-505.37461683,0.00014966,2]
[347182725,1735553446087,-500.0,0.00014966,2]
[347182726,1735553446096,-495.39483879,0.00014967,2]
[347182727,1735553446105,-500.0,0.00014967,2]
[347182728,1735553446114,-613.24787981,0.00014967,2]
[347182729,1735553446123,-500.0,0.00014967,2]
[347182730,1735553446132,-517.47956583,0.00014967,2]
[347182731,1735553446141,-500.0,0.00014967,2]
[347182732,1735553446150,-500.0,0.00014967,2]
[347182733,1735553446160,-500.0,0.00014967,2]
[347182734,1735553446169,-500.0,0.00014967,2]
[347182735,1735553446178,-500.0,0.00014967,2]
[347182736,1735553446187,-500.0,0.00014967,2]
[347182737,1735553446196,-500.0,0.00014967,2]
[347182738,1735553446206,-500.0,0.00014967,2]
[347182739,1735553446216,-487.06707841,0.00014967,2]
[347182740,1735553446225,-501.35646241,0.00014967,2]
[347182741,1735553446234,-500.0,0.00014967,2]
[347182742,1735553446244,-500.0,0.00014967,2]
[347182743,1735553446253,-500.0,0.00014967,2]
[347182744,1735553446262,-500.0,0.00014967,2]
[347182745,1735553446272,-500.0,0.00014967,2]
[347182747,1735553446281,-500.0,0.00014967,2]
[347182748,1735553446290,-500.0,0.00014967,2]
[347182749,1735553446299,-500.0,0.00014967,2]
[347182750,1735553446308,-500.0,0.00014967,2]
[347182751,1735553446318,-500.0,0.00014967,2]
[347182752,1735553446327,-500.0,0.00014967,2]
[347182753,1735553446336,-500.0,0.00014967,2]
[347182754,1735553446345,-501.49298612,0.00014967,2]
[347182755,1735553446354,-502.56951406,0.00014967,2]
[347182756,1735553446364,-491.61836905,0.00014967,2]
[347182757,1735553446374,-500.0,0.00014967,2]
[347182758,1735553446384,-500.0,0.00014967,2]
[347182759,1735553446393,-500.0,0.00014967,2]
[347182760,1735553446403,-500.0,0.00014967,2]
[347182761,1735553446412,-500.0,0.00014967,2]
[347182762,1735553446421,-500.0,0.00014967,2]
[347182763,1735553446431,-500.0,0.00014967,2]
[347182764,1735553446440,-500.0,0.00014967,2]
[347182765,1735553446449,-959.19,0.00014967,2]
[347182766,1735553446460,-500.0,0.00014967,2]
[347182767,1735553446471,-500.0,0.00014967,2]
[347182768,1735553446481,-500.0,0.00014967,2]
[347182769,1735553446490,-500.0,0.00014967,2]
[347182770,1735553446500,-500.0,0.00014967,2]
[347182771,1735553446509,-851.2,0.00014967,2]
[347182772,1735553446519,-500.0,0.00014967,2]
[347182773,1735553446528,-500.0,0.00014967,2]
[347182774,1735553446538,-500.0,0.00014967,2]
[347182775,1735553446547,-502.23782275,0.00014967,2]
[347182776,1735553446557,-500.0,0.00014967,2]
[347182777,1735553446566,-500.0,0.00014967,2]
[347182778,1735553446576,-500.0,0.00014967,2]
[347182779,1735553446585,-500.0,0.00014967,2]
[347182780,1735553446595,-501.63335695,0.00014967,2]
[347182781,1735553446604,-535.25535047,0.00014967,2]
[347182782,1735553446613,-500.0,0.00014967,2]
[347182783,1735553446624,-500.0,0.00014967,2]
[347182784,1735553446634,-500.0,0.00014967,2]
[347182785,1735553446643,-500.0,0.00014967,2]
[347182786,1735553446653,-500.0,0.00014967,2]
[347182787,1735553446662,-495.52,0.00014967,2]
[347182788,1735553446672,-500.0,0.00014967,2]
[347182789,1735553446681,-501.12845301,0.00014967,2]
[347182790,1735553446695,-501.72630372,0.00014967,2]
[347182791,1735553446704,-500.0,0.00014967,2]
[347182792,1735553446778,-502.26321738,0.00014967,2]
[347182793,1735553446788,-503.81761922,0.00014967,2]
[347182794,1735553446798,-524.66289064,0.00014967,2]
[347182795,1735553446808,-501.60378458,0.00014967,2]
[347182796,1735553446817,-501.44509434,0.00014967,2]
[347182797,1735553446827,-502.08830781,0.00014967,2]
[347182798,1735553446837,-502.44979427,0.00014967,2]
[347182799,1735553446846,-500.0,0.00014967,2]
[347182800,1735553446856,-309.034682,0.00014967,2]
[347182801,1735553446865,-309.034682,0.00014967,2]
[347182802,1735553446875,-511.74190359,0.00014967,2]
[347182803,1735553446885,-542.039691,0.00014967,2]
[347182804,1735553446894,-500.0,0.00014967,2]
[347182805,1735553446904,-542.039691,0.00014967,2]
[347182806,1735553446914,-601.76169388,0.00014967,2]
[347182807,1735553446923,-500.0,0.00014967,2]
[347182808,1735553446933,-1057.78841,0.00014967,2]
[347182809,1735553446942,-3010.081874,0.00014967,2]
[347182810,1735553446952,-1057.78841,0.00014967,2]
[347182811,1735553446962,-3010.081874,0.00014967,2]
[347182812,1735553446971,-500.0,0.00014967,2]
[347182813,1735553446982,-500.0,0.00014968,2]
[347182814,1735553446992,-661.65,0.00014968,2]
[347182815,1735553447002,-500.0,0.00014976,2]
[347182816,1735553447012,-500.0,0.00014976,2]
[347182817,1735553447022,-500.0,0.00014976,2]
[347182818,1735553447031,-500.0,0.00014976,2]
[347182819,1735553447041,-153.5340186,0.00015,2]
[347182820,1735553447050,-352.5060848,0.00015,2]
[347182821,1735553447060,-214.3641981,0.00015,2]
[347182822,1735553447069,-243.0466596,0.000151,2]
[347182823,1735553447079,-352.5060848,0.000151,2]
[347182824,1735553447089,-153.5340186,0.000151,2]
[347182825,1735553447098,-778.129999,0.00015155,2]
[347182826,1735553447108,-778.129999,0.00015155,2]
[347182827,1735553447117,-478.092112,0.00015155,2]
[347182828,1735553447127,-478.092112,0.00015155,2]
[347182829,1735553447136,-315.997811,0.00015155,2]
[347182830,1735553447146,-315.997811,0.00015155,2]
[347182831,1735553447155,-765.820995,0.00015155,2]
[347182832,1735553447166,-765.820995,0.00015155,2]
[347182833,1735553447176,-153.0,0.00015168,2]
[347182834,1735553447186,-1236.98825751,0.00015191,2]
[347182835,1735553447196,-64778.93291372,0.00015206,2]
[347182836,1735553447205,-500.0,0.00015209,2]
[347182837,1735553447216,-552.59579627,0.00015209,2]
[347182838,1735553447225,-1057.78841,0.00015209,2]
[347182839,1735553447234,-3010.081874,0.00015209,2]
[347182840,1735553447244,-1057.78841,0.00015209,2]
[347182841,1735553447254,-3010.081874,0.00015209,2]
[347182842,1735553447264,-482.99,0.0001524,2]
[347182843,1735553447273,-234.47425565,0.0001524,2]
[347182844,1735553447283,-500.0,0.0001524,2]
[347182845,1735553447293,-365.73,0.0001524,2]
[347182846,1735553447302,-500.0,0.0001524,2]
[347182847,1735553447312,-500.0,0.0001524,2]
[347182848,1735553447322,-500.0,0.0001524,2]
[347182849,1735553447332,-500.0,0.0001524,2]
[347182850,1735553447342,-500.0,0.0001524,2]
[347182851,1735553447352,-500.0,0.0001524,2]
[347182852,1735553447362,-500.0,0.0001524,2]
[347182853,1735553447371,-500.0,0.0001524,2]
[347182854,1735553447381,-500.0,0.0001524,2]
[347182855,1735553447391,-500.0,0.0001524,2]
[347182856,1735553447400,-501.34918812,0.0001524,2]
[347182857,1735553447410,-500.0,0.0001524,2]
[347182858,1735553447420,-500.0,0.0001524,2]
[347182859,1735553447429,-500.0,0.0001524,2]
[347182860,1735553447438,-500.0,0.0001524,2]
[347182861,1735553447448,-500.0,0.0001524,2]
[347182862,1735553447457,-500.0,0.0001524,2]
[347182863,1735553447469,-500.0,0.0001524,2]
[347182864,1735553447479,-500.0,0.0001524,2]
[347182865,1735553447488,-500.0,0.0001524,2]
[347182866,1735553447498,-305.63905498,0.0001524,2]
[347182867,1735553447507,-500.0,0.0001524,2]
[347182868,1735553447516,-500.0,0.0001524,2]
[347182869,1735553447526,-500.0,0.0001524,2]
[347182870,1735553447535,-500.0,0.0001524,2]
[347182871,1735553447544,-500.0,0.0001524,2]
[347182872,1735553447553,-500.0,0.0001524,2]
[347182873,1735553447563,-899.57,0.0001524,2]
[347182874,1735553447573,-500.0,0.0001524,2]
[347182875,1735553447582,-500.0,0.0001524,2]
[347182876,1735553447591,-500.0,0.0001524,2]
[347182877,1735553447600,-1398.82,0.0001524,2]
[347182878,1735553447610,-500.0,0.0001524,2]
[347182879,1735553447619,-151.0,0.0001524,2]
[347182880,1735553447628,-500.0,0.0001524,2]
[347182881,1735553447638,-500.0,0.0001524,2]
[347182882,1735553447647,-6631.15,0.0001524,2]
[347182883,1735553447656,-548.05,0.0001524,2]
[347182884,1735553447666,-503.34,0.0001524,2]
[347182885,1735553447675,-500.0,0.0001524,2]
[347182886,1735553447686,-391.58,0.0001524,2]
[347182887,1735553447696,-2678.1,0.0001524,2]
[347182888,1735553447705,-751.488954,0.0001524,2]
[347182889,1735553447715,-751.488954,0.0001524,2]
[347182890,1735553447724,-500.0,0.0001524,2]
[347182891,1735553447734,-321.20013267,0.0001524,2]
[347182892,1735553447743,-500.0,0.0001524,2]
[347182893,1735553447753,-500.0,0.0001524,2]
[347182894,1735553447762,-500.0,0.00015241,2]
[347182895,1735553447771,-503.40381298,0.00015241,2]
[347182896,1735553447781,-500.0,0.00015241,2]
[347182897,1735553447790,-500.0,0.00015241,2]
[347182898,1735553447800,-500.0,0.00015241,2]
[347182899,1735553447809,-500.0,0.00015241,2]